fUSD/lending_fUSD_20260404
["ID","MTS","AMOUNT","RATE_DAILY","PERIOD"]
[419711787,1775332245784,-150.0,0.00015573,2]
[419711788,1775332245793,-3494.0,0.0001558,2]
[419711789,1775332245802,-150.0,0.00015582,2]
[419711790,1775332245812,-2700.68543488,0.00015584,2]
[419711791,1775332245822,-500.0,0.00015584,2]
[419711792,1775332245831,-151.0,0.00015584,2]
[419711793,1775332245841,-150.0,0.00015597,2]
[419711794,1775332245851,-3890.0,0.000156,2]
[419711795,1775332245861,-234.59554641,0.00015601,2]
[419711796,1775332245871,-2000.0,0.00015601,2]
[419711797,1775332245880,-2000.0,0.00015601,2]
[419711798,1775332245891,-150.0,0.00015602,2]
[419711799,1775332245902,-150.0,0.0001561,2]
[419711800,1775332245913,-150.0,0.0001561,2]
[419711801,1775332245922,-150.0,0.00015618,2]
[419711802,1775332245931,-150.0,0.00015618,2]
[419711803,1775332245942,-1572.0,0.0001562,2]
[419711804,1775332245952,-150.0,0.00015623,2]
[419711805,1775332245963,-150.0,0.0001563,2]
[419711806,1775332245972,-500.0,0.00015639,2]
[419711807,1775332245982,-151.0,0.00015639,2]
[419711808,1775332245992,-3776.44,0.00015642,2]
[419711809,1775332246001,-150.0,0.00015644,2]
[419711810,1775332246010,-150.0,0.00015646,2]
[419711811,1775332246019,-150.0,0.00015646,2]
[419711812,1775332246028,-150.0,0.00015653,2]
[419711813,1775332246038,-150.0,0.00015659,2]
[419711814,1775332246047,-150.0,0.00015673,2]
[419711815,1775332246058,-150.0,0.00015673,2]
[419711816,1775332246067,-3657.207,0.00015678,2]
[419711817,1775332246076,-178.117,0.00015678,2]
[419711818,1775332246086,-3688.94579177,0.0001568,2]
[419711819,1775332246095,-1572.0,0.0001568,2]
[419711820,1775332246104,-150.0,0.00015682,2]
[419711821,1775332246114,-150.0,0.00015682,2]
[419711822,1775332246123,-150.0,0.00015687,2]
[419711823,1775332246132,-150.0,0.00015689,2]
[419711824,1775332246142,-150.0,0.00015691,2]
[419711825,1775332246151,-500.0,0.00015694,2]
[419711826,1775332246160,-151.0,0.00015694,2]
[419711827,1775332246170,-1979.71839249,0.000157,2]
[419711828,1775332246179,-2000.0,0.00015701,2]
[419711829,1775332246188,-150.0,0.00015706,2]
[419711830,1775332246198,-785.54,0.0001571,2]
[419711831,1775332246207,-150.0,0.00015716,2]
[419711832,1775332246216,-150.0,0.00015718,2]
[419711833,1775332246226,-150.0,0.00015718,2]
[419711834,1775332246235,-3494.0,0.00015721,2]
[419711835,1775332246244,-150.0,0.00015723,2]
[419711836,1775332246254,-150.0,0.00015724,2]
[419711837,1775332246263,-158.0,0.00015733,2]
[419711838,1775332246273,-150.0,0.00015738,2]
[419711839,1775332246282,-150.0,0.00015744,2]
[419711840,1775332246291,-1481.23780761,0.00015747,2]
[419711841,1775332246300,-200.0,0.00015747,2]
[419711842,1775332246310,-771.01748645,0.00015747,2]
[419711843,1775332246319,-181.08010149,0.00015747,2]
[419711844,1775332246330,-200.0,0.00015747,2]
[419711845,1775332246339,-290.26104003,0.00015747,2]
[419711846,1775332246348,-500.0,0.00015749,2]
[419711847,1775332246357,-151.0,0.00015749,2]
[419711848,1775332246366,-245.407609,0.00015753,2]
[419711850,1775332246375,-150.0,0.00015755,2]
[419711851,1775332246384,-150.0,0.00015755,2]
[419711852,1775332246394,-36292.90335983,0.00015758,2]
[419711853,1775332246405,-150.0,0.0001576,2]
[419711854,1775332246414,-3494.0,0.00015762,2]
[419711855,1775332246424,-3494.0,0.00015764,2]
[419711856,1775332246434,-150.0,0.00015773,2]
[419711857,1775332246445,-150.0,0.00015773,2]
[419711858,1775332246455,-150.0,0.00015773,2]
[419711859,1775332246465,-150.0,0.00015773,2]
[419711860,1775332246476,-150.0,0.00015785,2]
[419711861,1775332246487,-150.0,0.00015791,2]
[419711862,1775332246496,-150.0,0.00015791,2]
[419711863,1775332246506,-150.0,0.00015795,2]
[419711864,1775332246516,-150.0,0.00015795,2]
[419711865,1775332246526,-2000.0,0.00015801,2]
[419711866,1775332246535,-150.0,0.00015801,2]
[419711867,1775332246544,-194.0,0.00015802,2]
[419711868,1775332246554,-449.17994436,0.00015802,2]
[419711869,1775332246563,-500.0,0.00015802,2]
[419711870,1775332246572,-622.0,0.00015803,2]
[419711871,1775332246581,-3521.0,0.00015803,2]
[419711872,1775332246591,-1347.0,0.00015803,2]
[419711873,1775332246600,-150.0,0.00015803,2]
[419711874,1775332246610,-1277.641,0.00015803,2]
[419711875,1775332246619,-1217.0,0.00015803,2]
[419711876,1775332246629,-150.0,0.00015803,2]
[419711878,1775332246638,-3769.0,0.00015803,2]
[419711879,1775332246647,-2470.0,0.00015803,2]
[419711880,1775332246656,-3494.0,0.00015815,2]
[419711882,1775332246666,-150.0,0.00015823,2]
[419711885,1775332246677,-150.0,0.00015827,2]
[419711886,1775332246687,-150.0,0.00015827,2]
[419711887,1775332246698,-150.0,0.0001583,2]
[419711888,1775332246707,-150.0,0.00015831,2]
[419711890,1775332246718,-150.0,0.00015832,2]
[419711892,1775332246727,-24984.01404667,0.0001584,2]
[419711893,1775332246737,-158.0,0.00015841,2]
[419711895,1775332246746,-1152.0,0.00015842,2]
[419711898,1775332246756,-722.32,0.00015858,2]
[419711900,1775332246766,-722.32,0.00015858,2]
[419711902,1775332246775,-722.32,0.00015858,2]
[419711904,1775332246784,-722.32,0.00015858,2]
[419711906,1775332246795,-722.48197381,0.00015858,2]
[419711908,1775332246804,-150.0,0.00015859,2]
[419711910,1775332246813,-325.12,0.00015859,2]
[419711914,1775332246824,-3494.0,0.00015859,2]
[419711915,1775332246913,-150.0,0.00015864,2]
[419711916,1775332246922,-150.0,0.00015864,2]
[419711917,1775332246931,-2500.0,0.00015864,2]
[419711918,1775332246940,-2500.0,0.00015864,2]
[419711919,1775332246951,-150.0,0.00015866,2]
[419711920,1775332246960,-500.0,0.00015871,2]
[419711921,1775332246971,-200.0,0.00015871,2]
[419711922,1775332246980,-500.0,0.00015872,2]
[419711923,1775332246990,-200.0,0.00015872,2]
[419711924,1775332246999,-150.0,0.00015873,2]
[419711925,1775332247008,-150.0,0.00015873,2]
[419711926,1775332247017,-150.0,0.00015879,2]
[419711927,1775332247027,-150.0,0.00015884,2]
[419711928,1775332247037,-150.0,0.00015887,2]
[419711929,1775332247046,-500.0,0.0001589,2]
[419711930,1775332247056,-519.17533645,0.0001589,2]
[419711931,1775332247065,-237.43996902,0.00015893,2]
[419711932,1775332247075,-183.74,0.00015893,2]
[419711933,1775332247084,-13865.02536044,0.00015895,2]
[419711934,1775332247093,-13865.02536039,0.00015896,2]
[419711935,1775332247103,-1493.0,0.00015897,2]
[419711936,1775332247111,-13865.02536039,0.00015897,2]
[419711937,1775332247120,-194.0,0.00015898,2]
[419711938,1775332247130,-13865.02536039,0.00015898,2]
[419711939,1775332247139,-13865.02536039,0.00015899,2]
[419711940,1775332247149,-604.90515633,0.000159,2]
[419711941,1775332247158,-150.0,0.000159,2]
[419711942,1775332247167,-150.0,0.000159,2]
[419711943,1775332247177,-273.4396,0.000159,2]
[419711944,1775332247186,-150.0,0.000159,2]
[419711945,1775332247195,-150.0,0.000159,2]
[419711946,1775332247204,-150.0,0.000159,2]
[419711947,1775332247213,-150.0,0.000159,2]
[419711948,1775332247223,-150.0,0.000159,2]
[419711949,1775332247232,-618.33613704,0.000159,2]
[419711950,1775332247241,-13865.02536039,0.000159,2]
[419711951,1775332247252,-198.3901028,0.000159,2]
[419711952,1775332247261,-2186.0,0.000159,5]
[419711953,1775332247270,-1753.0,0.000159,5]
[419711954,1775332247279,-150.0,0.000159,2]
[419711955,1775332247288,-150.0,0.000159,2]
[419711956,1775332247297,-2000.0,0.00015901,2]
[419711957,1775332247306,-150.0,0.00015902,2]
[419711958,1775332247315,-3494.0,0.00015909,2]
[419711959,1775332247325,-150.0,0.00015916,2]
[419711960,1775332247334,-1000.0,0.0001592,2]
[419711961,1775332247343,-246.472,0.0001592,2]
[419711962,1775332247352,-1000.0,0.00015921,2]
[419711963,1775332247361,-501.4995107,0.00015921,2]
[419711964,1775332247370,-419.81066253,0.00015921,2]
[419711965,1775332247381,-1000.0,0.00015921,2]
[419711966,1775332247393,-501.1834914,0.00015921,2]
[419711967,1775332247402,-1000.0,0.00015921,2]
[419711968,1775332247411,-1000.96174367,0.00015921,2]
[419711969,1775332247421,-150.0,0.00015923,2]
[419711970,1775332247430,-150.0,0.00015926,2]
[419711971,1775332247440,-150.0,0.00015936,2]
[419711972,1775332247449,-150.0,0.00015936,2]
[419711973,1775332247458,-150.0,0.00015937,2]
[419711974,1775332247467,-150.0,0.00015944,2]
[419711975,1775332247476,-500.0,0.00015973,2]
[419711976,1775332247485,-307.35572359,0.00015973,2]
[419711977,1775332247494,-500.0,0.00015973,2]
[419711978,1775332247503,-178.83121777,0.00015973,2]
[419711979,1775332247512,-500.0,0.00015973,2]
[419711980,1775332247521,-500.0,0.00015973,2]
[419711981,1775332247530,-500.0,0.00015973,2]
[419711982,1775332247539,-500.0,0.00015973,2]
[419711983,1775332247548,-165.64274187,0.00015973,2]
[419711984,1775332247557,-150.0,0.00015973,2]
[419711985,1775332247566,-240.20283738,0.00015973,2]
[419711986,1775332247575,-150.0,0.00015973,2]
[419711987,1775332247584,-245.82237456,0.00015973,2]
[419711988,1775332247593,-256.52934676,0.00015973,2]
[419711989,1775332247602,-296.71799963,0.00015973,2]
[419711990,1775332247611,-153.19744013,0.00015973,2]
[419711991,1775332247620,-153.96487141,0.00015973,2]
[419711992,1775332247630,-150.0,0.00015973,2]
[419711993,1775332247639,-150.0,0.00015973,2]
[419711994,1775332247648,-150.0,0.00015973,2]
[419711995,1775332247659,-158.80277884,0.00015973,2]
[419711996,1775332247668,-150.0,0.00015973,2]
[419711997,1775332247677,-500.0,0.00015973,2]
[419711998,1775332247685,-500.0,0.00015973,2]
[419711999,1775332247694,-500.0,0.00015973,2]
[419712000,1775332247703,-500.0,0.00015973,2]
[419712001,1775332247712,-500.0,0.00015973,2]
[419712002,1775332247721,-500.0,0.00015973,2]
[419712003,1775332247730,-518.91238386,0.00015973,2]
[419712004,1775332247740,-501.69279177,0.00015973,2]
[419712005,1775332247749,-500.0,0.00015973,2]
[419712006,1775332247758,-500.0,0.00015973,2]
[419712007,1775332247767,-500.0,0.00015973,2]
[419712008,1775332247776,-609.23348249,0.00015973,2]
[419712009,1775332247784,-500.0,0.00015973,2]
[419712010,1775332247793,-500.0,0.00015973,2]
[419712011,1775332247802,-490.65099871,0.00015973,2]
[419712012,1775332247811,-343.00680173,0.00015973,2]
[419712013,1775332247820,-500.0,0.00015973,2]
[419712014,1775332247829,-500.0,0.00015973,2]
[419712015,1775332247838,-500.0,0.00015973,2]
[419712016,1775332247847,-500.0,0.00015973,2]
[419712017,1775332247856,-500.0,0.00015973,2]
[419712018,1775332247866,-500.0,0.00015973,2]
[419712019,1775332247875,-500.0,0.00015973,2]
[419712020,1775332247884,-500.0,0.00015973,2]
[419712021,1775332247893,-5888.0,0.00015977,2]
[419712022,1775332247902,-785.54,0.00015984,2]
[419712023,1775332247911,-731.89333735,0.0001599,2]
[419712024,1775332247920,-731.89333735,0.0001599,2]
[419712025,1775332247929,-2390.278619,0.00015995,2]
[419712026,1775332247939,-618111.366307,0.00015995,2]
[419712027,1775332247949,-1498.1785969,0.00015995,2]
[419712028,1775332247960,-170.102732,0.00015995,2]
[419712029,1775332247970,-170.102732,0.00015995,2]
[419712030,1775332247980,-151.0,0.00015995,2]
[419712031,1775332247992,-170.102732,0.00015995,2]
[419712032,1775332248002,-152.044284,0.00015995,2]
[419712033,1775332248012,-170.102732,0.00015995,2]
[419712034,1775332248023,-63492.8763894,0.00015995,2]
[419712035,1775332248033,-1128.948676,0.00015995,2]
[419712036,1775332248043,-1889.06906,0.00015995,2]
[419712037,1775332248053,-1128.948676,0.00015995,2]
[419712038,1775332248063,-1889.06906,0.00015995,2]
[419712039,1775332248072,-1128.948676,0.00015995,2]
[419712040,1775332248082,-1889.06906,0.00015995,2]
[419712041,1775332248091,-1128.948676,0.00015995,2]
[419712042,1775332248100,-1889.06906,0.00015995,2]
[419712043,1775332248109,-151.0,0.00015995,2]
[419712044,1775332248118,-293.55988,0.00015995,2]
[419712045,1775332248127,-293.55988,0.00015995,2]
[419712046,1775332248136,-293.55988,0.00015995,2]
[419712047,1775332248145,-293.55988,0.00015995,2]
[419712048,1775332248155,-86585.4021019,0.00015995,2]
[419712049,1775332248164,-808.138285,0.00015995,2]
[419712050,1775332248174,-207.556417,0.00015995,2]
[419712051,1775332248183,-808.138285,0.00015995,2]
[419712052,1775332248193,-207.556417,0.00015995,2]
[419712053,1775332248202,-808.138285,0.00015995,2]
[419712054,1775332248211,-207.556417,0.00015995,2]
[419712055,1775332248221,-808.138285,0.00015995,2]
[419712056,1775332248231,-207.556417,0.00015995,2]
[419712057,1775332248240,-259.15026946,0.00015996,2]
[419712058,1775332248250,-151.0,0.00015997,2]
[419712059,1775332248260,-151.0,0.00015997,2]
[419712060,1775332248271,-182.598912,0.00015997,2]
[419712061,1775332248280,-151.0,0.00015997,2]
[419712062,1775332248291,-500.0,0.00015999,2]
[419712063,1775332248300,-500.0,0.00015999,2]
[419712064,1775332248309,-640.59083974,0.00015999,2]
[419712065,1775332248318,-280074.19736712,0.00016,2]
[419712066,1775332248328,-5336.99557971,0.00016,2]
[419712067,1775332248337,-150.0,0.00016,2]
[419712068,1775332248347,-2214.79605987,0.00016,2]
[419712069,1775332248356,-150.0,0.00016,2]
[419712070,1775332248365,-14138.35052718,0.00016,2]
[419712071,1775332248375,-2510433.97074113,0.00016,2]
[419712072,1775332248385,-20000.0,0.00016,2]
[419712073,1775332248394,-105442.23077416,0.00016,2]
[419712074,1775332249003,-719.17,0.00016,2]
[419712075,1775332249612,-1005736.25497311,0.00016,2]
[419712076,1775332249621,-150.0,0.00016,2]
[419712077,1775332249632,-6612.64514144,0.00016,2]
[419712078,1775332249644,-200.0,0.00016,2]
[419712079,1775332249655,-200.91600517,0.00016,2]
[419712080,1775332249664,-481.20456244,0.00016,2]
[419712081,1775332249673,-170.102732,0.00016,2]
[419712082,1775332249683,-170.102732,0.00016,2]
[419712083,1775332249692,-151.0,0.00016,2]
[419712084,1775332249703,-170.102732,0.00016,2]
[419712085,1775332249713,-170.102732,0.00016,2]
[419712086,1775332249723,-1000.0,0.00016,2]
[419712087,1775332249733,-1071.4,0.00016,2]
[419712088,1775332249742,-295.0,0.00016,2]
[419712089,1775332249752,-2000.0,0.00016,2]
[419712090,1775332249762,-1128.948676,0.00016,2]
[419712091,1775332249773,-2000.0,0.00016,2]
[419712092,1775332249783,-1889.06906,0.00016,2]
[419712093,1775332249793,-1128.948676,0.00016,2]
[419712094,1775332249803,-1889.06906,0.00016,2]
[419712095,1775332249812,-1128.948676,0.00016,2]
[419712096,1775332249821,-1889.06906,0.00016,2]
[419712097,1775332249831,-1128.948676,0.00016,2]
[419712098,1775332249843,-1889.06906,0.00016,2]
[419712099,1775332249852,-151.0,0.00016,2]
[419712100,1775332249862,-293.55988,0.00016,2]
[419712101,1775332249872,-293.55988,0.00016,2]
[419712102,1775332249882,-293.55988,0.00016,2]
[419712103,1775332249892,-293.55988,0.00016,2]
[419712104,1775332249902,-808.138285,0.00016,2]
[419712105,1775332249912,-207.556417,0.00016,2]
[419712106,1775332249921,-808.138285,0.00016,2]
[419712107,1775332249931,-207.556417,0.00016,2]
[419712108,1775332249941,-808.138285,0.00016,2]
[419712109,1775332249952,-207.556417,0.00016,2]
[419712110,1775332249963,-808.138285,0.00016,2]
[419712111,1775332249973,-207.556417,0.00016,2]
[419712112,1775332249984,-200.0,0.00016,2]
[419712113,1775332249994,-1523.365646,0.00016,2]
[419712114,1775332250004,-1523.365646,0.00016,2]
[419712115,1775332250014,-1523.365646,0.00016,2]
[419712116,1775332250024,-959.468694,0.00016,2]
[419712117,1775332250034,-1523.365646,0.00016,2]
[419712118,1775332250044,-959.468694,0.00016,2]
[419712119,1775332250054,-959.468694,0.00016,2]
[419712120,1775332250064,-959.468694,0.00016,2]
[419712121,1775332250075,-151.0,0.00016,2]
[419712122,1775332250084,-347.839994,0.00016,2]
[419712123,1775332250093,-151.0,0.00016,2]
[419712124,1775332250103,-151.0,0.00016,2]
[419712125,1775332250113,-151.0,0.00016,2]
[419712126,1775332250124,-2000.0,0.00016001,2]
[419712127,1775332250134,-1950.0,0.00016035,2]
[419712128,1775332250146,-1950.0,0.00016035,2]
[419712129,1775332250156,-1950.0,0.00016035,2]
[419712130,1775332250166,-1950.0,0.00016035,2]
[419712131,1775332250176,-1950.0,0.00016035,2]
[419712132,1775332250185,-1950.0,0.00016035,2]
[419712133,1775332250195,-1950.0,0.00016035,2]
[419712134,1775332250205,-1950.0,0.00016035,2]
[419712135,1775332250215,-1950.0,0.00016035,2]
[419712136,1775332250225,-1899.0,0.00016035,2]
[419712137,1775332250235,-1117.69033629,0.00016061,2]
[419712138,1775332250245,-3494.0,0.00016077,2]
[419712139,1775332250254,-3494.0,0.00016086,2]
[419712140,1775332250265,-347.839994,0.000161,2]
[419712141,1775332250277,-255.0,0.00016101,2]
[419712142,1775332250287,-893.21324374,0.00016101,30]
[419712143,1775332250298,-9999.99,0.00016116,2]
[419712144,1775332250307,-150.0,0.00016137,2]
[419712145,1775332250571,-1252.0,0.00016142,2]
[419712146,1775332250583,-200.0,0.0001616,2]
[419712147,1775332250592,-1600.0,0.00016164,2]
[419712148,1775332250602,-881.58,0.00016171,2]
[419712149,1775332250612,-2000.0,0.000162,2]
[419712150,1775332250621,-2000.0,0.000162,2]
[419712151,1775332250631,-347.839994,0.000162,2]
[419712152,1775332250640,-327.53097151,0.00016242,2]
[419712153,1775332250649,-234.59554641,0.00016251,2]
[419712154,1775332250659,-2937.27,0.00016282,2]
[419712155,1775332250668,-5888.0,0.00016291,2]
[419712156,1775332250678,-1536.04360649,0.00016295,2]
[419712157,1775332250687,-200.0,0.00016295,2]
[419712158,1775332250696,-799.54513345,0.00016295,2]
[419712159,1775332250705,-187.78006525,0.00016295,2]
[419712160,1775332250715,-200.0,0.00016295,2]
[419712161,1775332250724,-301.00069851,0.00016295,2]
[419712162,1775332250733,-200.0,0.00016322,2]
[419712163,1775332250743,-166.67,0.00016339,2]
[419712164,1775332250752,-200.0,0.0001634,2]
[419712165,1775332250762,-4923.0,0.00016369,2]
[419712166,1775332250771,-5888.0,0.00016373,2]
[419712167,1775332250780,-154.78244338,0.00016378,2]
[419712168,1775332250790,-170.102732,0.00016381,2]
[419712169,1775332250799,-170.102732,0.00016381,2]
[419712170,1775332250809,-151.0,0.00016381,2]
[419712171,1775332250818,-170.102732,0.00016381,2]
[419712172,1775332250828,-170.102732,0.00016381,2]
[419712173,1775332250837,-2000.0,0.000164,2]
[419712174,1775332250846,-2000.0,0.000164,2]
[419712175,1775332250855,-2000.0,0.000164,2]
[419712176,1775332250866,-3000.0,0.00016412,2]
[419712177,1775332250876,-504.34724751,0.00016412,2]
[419712178,1775332250886,-769.2,0.00016438,2]
[419712179,1775332250896,-604.87,0.00016438,2]
[419712180,1775332250905,-567.12,0.00016438,2]
[419712181,1775332250914,-952.87,0.00016438,2]
[419712182,1775332250923,-1967.03,0.00016438,2]
[419712183,1775332250932,-628.98,0.00016438,2]
[419712184,1775332250942,-960.1,0.00016438,2]
[419712185,1775332250951,-1339.0,0.00016438,2]
[419712186,1775332250960,-1339.0,0.00016438,2]
[419712187,1775332250969,-1339.0,0.00016438,2]
[419712188,1775332250979,-1339.0,0.00016438,2]
[419712189,1775332250988,-1339.0,0.00016438,2]
[419712190,1775332250997,-1339.0,0.00016438,2]
[419712191,1775332251007,-1339.0,0.00016438,2]
[419712192,1775332251016,-1339.0,0.00016438,2]
[419712193,1775332251025,-1339.0,0.00016438,2]
[419712194,1775332251035,-1339.0,0.00016438,2]
[419712195,1775332251044,-1339.0,0.00016438,2]
[419712196,1775332251054,-1339.0,0.00016438,2]
[419712197,1775332251063,-1339.0,0.00016438,2]
[419712198,1775332251072,-1339.0,0.00016438,2]
[419712199,1775332251081,-1339.0,0.00016438,2]
[419712200,1775332251091,-1339.0,0.00016438,2]
[419712201,1775332251100,-1339.0,0.00016438,2]
[419712202,1775332251109,-1339.0,0.00016438,2]
[419712203,1775332251118,-1339.0,0.00016438,2]
[419712204,1775332251128,-1339.0,0.00016438,2]
[419712205,1775332251137,-1339.0,0.00016438,2]
[419712206,1775332251147,-1339.0,0.00016438,2]
[419712207,1775332251156,-1339.0,0.00016438,2]
[419712208,1775332251165,-1340.13847977,0.00016438,2]
[419712209,1775332251175,-2500.0,0.00016438,2]
[419712210,1775332251184,-2500.0,0.00016438,2]
[419712211,1775332251193,-2500.0,0.00016438,2]
[419712212,1775332251202,-2500.0,0.00016438,2]
[419712213,1775332251212,-2500.0,0.00016438,2]
[419712214,1775332251220,-2500.0,0.00016438,2]
[419712215,1775332251230,-2500.0,0.00016438,2]
[419712216,1775332251242,-2500.0,0.00016438,2]
[419712217,1775332251251,-2500.0,0.00016438,2]
[419712218,1775332251260,-2500.0,0.00016438,2]
[419712219,1775332251270,-1339.84234106,0.00016438,2]
[419712220,1775332251279,-151.0,0.00016438,2]
[419712221,1775332251288,-293.55988,0.00016438,2]
[419712222,1775332251297,-293.55988,0.00016438,2]
[419712223,1775332251306,-293.55988,0.00016438,2]
[419712224,1775332251316,-293.55988,0.00016438,2]
[419712225,1775332251325,-808.138285,0.00016438,2]
[419712226,1775332251334,-207.556417,0.00016438,2]
[419712227,1775332251343,-808.138285,0.00016438,2]
[419712228,1775332251352,-207.556417,0.00016438,2]
[419712229,1775332251361,-808.138285,0.00016438,2]
[419712230,1775332251371,-207.556417,0.00016438,2]
[419712231,1775332251381,-808.138285,0.00016438,2]
[419712232,1775332251392,-207.556417,0.00016438,2]
[419712233,1775332251404,-1523.365646,0.00016438,2]
[419712234,1775332251414,-1523.365646,0.00016438,2]
[419712235,1775332251425,-1523.365646,0.00016438,2]
[419712236,1775332251434,-959.468694,0.00016438,2]
[419712237,1775332251443,-1523.365646,0.00016438,2]
[419712238,1775332251452,-959.468694,0.00016438,2]
[419712239,1775332251461,-959.468694,0.00016438,2]
[419712240,1775332251470,-959.468694,0.00016438,2]
[419712241,1775332251479,-151.0,0.00016438,2]
[419712242,1775332251488,-151.0,0.00016438,2]
[419712243,1775332251498,-151.0,0.00016438,2]
[419712244,1775332251507,-201.529297,0.00016438,2]
[419712245,1775332251516,-151.0,0.00016438,2]
[419712246,1775332251525,-151.0,0.00016438,2]
[419712247,1775332251534,-151.0,0.00016438,2]
[419712248,1775332251543,-250.0,0.00016438,2]
[419712249,1775332251552,-250.0,0.00016438,2]
[419712250,1775332251561,-3474.47,0.00016438,2]
[419712251,1775332251570,-229.12,0.00016438,2]
[419712252,1775332251580,-151.0,0.00016438,2]
[419712253,1775332251590,-151.0,0.00016438,2]
[419712254,1775332251600,-151.0,0.00016438,2]
[419712255,1775332251611,-151.0,0.00016438,2]
[419712256,1775332251622,-151.0,0.00016438,2]
[419712257,1775332251632,-151.0,0.00016438,2]
[419712258,1775332251642,-151.0,0.00016438,2]
[419712259,1775332251654,-151.0,0.00016438,2]
[419712260,1775332251663,-158.581746,0.00016438,2]
[419712261,1775332251672,-151.0,0.00016438,2]
[419712262,1775332251681,-151.0,0.00016438,2]
[419712263,1775332251690,-151.0,0.00016438,2]
[419712264,1775332251699,-151.0,0.00016438,2]
[419712265,1775332251708,-151.0,0.00016438,2]
[419712266,1775332251716,-151.0,0.00016438,2]
[419712267,1775332251725,-151.0,0.00016438,2]
[419712268,1775332251734,-151.0,0.00016438,2]
[419712269,1775332251743,-151.0,0.00016438,2]
[419712270,1775332251752,-151.0,0.00016438,2]
[419712271,1775332251761,-151.0,0.00016438,2]
[419712272,1775332251770,-151.0,0.00016438,2]
[419712273,1775332251781,-151.0,0.00016438,2]
[419712274,1775332251791,-151.0,0.00016438,2]
[419712275,1775332251802,-151.0,0.00016438,2]
[419712276,1775332251812,-151.0,0.00016438,2]
[419712277,1775332251821,-151.0,0.00016438,2]
[419712278,1775332251831,-151.0,0.00016438,2]
[419712279,1775332251841,-294.560932,0.00016438,2]
[419712280,1775332251851,-281.3,0.00016438,2]
[419712281,1775332251862,-421.013062,0.00016438,2]
[419712282,1775332251872,-421.013062,0.00016438,2]
[419712283,1775332251881,-421.013062,0.00016438,2]
[419712284,1775332251891,-421.013062,0.00016438,2]
[419712285,1775332251900,-421.013062,0.00016438,2]
[419712286,1775332251909,-421.013062,0.00016438,2]
[419712287,1775332251918,-421.013062,0.00016438,2]
[419712288,1775332251927,-421.013062,0.00016438,2]
[419712289,1775332251936,-900.0,0.00016438,2]
[419712290,1775332251945,-150.0,0.00016438,2]
[419712291,1775332251954,-262.23701361,0.00016438,2]
[419712292,1775332251964,-883.0,0.00016445,2]
[419712293,1775332251972,-500.0,0.00016468,2]
[419712294,1775332251982,-1005.31465094,0.00016468,2]
[419712295,1775332251991,-1500.0,0.00016468,2]
[419712296,1775332252000,-325.12,0.00016469,2]
[419712297,1775332252010,-200.0,0.00016485,2]
[419712298,1775332252019,-300.0,0.00016485,2]
[419712299,1775332252028,-421.013062,0.00016486,2]
[419712300,1775332252038,-421.013062,0.00016486,2]
[419712301,1775332252047,-421.013062,0.00016486,2]
[419712302,1775332252057,-421.013062,0.00016486,2]
[419712303,1775332252066,-1128.948676,0.00016486,2]
[419712304,1775332252075,-1889.06906,0.00016486,2]
[419712305,1775332252084,-1128.948676,0.00016486,2]